bitfinex/quotes_BTCUSD_20250215
["timestamp","ask_amount","ask_price","bid_price","bid_amount"]
[1739577600359,7.5e-07,97489.0,97488.0,0.1167273]
[1739577601533,7.5e-07,97489.0,97488.0,0.1397273]
[1739577607600,0.05270479,97488.0,97481.0,0.10250365]
[1739577608894,0.05270479,97488.0,97481.0,0.10950365]
[1739577609819,0.05370479,97488.0,97482.0,0.023]
[1739577610021,0.05370479,97488.0,97484.0,0.023]
[1739577610231,0.05370479,97488.0,97485.0,0.10250365]
[1739577611095,0.05270479,97488.0,97485.0,0.10250365]
[1739577611322,0.05370479,97488.0,97485.0,0.10250365]
[1739577613020,0.05370479,97488.0,97485.0,0.10950365]
[1739577613499,0.05470479,97488.0,97485.0,0.11650365]
[1739577622344,0.05470479,97488.0,97487.0,0.1021]
[1739577622544,0.05470479,97488.0,97487.0,0.20460365]
[1739577623165,0.05270479,97488.0,97487.0,0.20460365]
[1739577623379,0.06973731,97488.0,97487.0,0.21860365]
[1739577624161,0.06873731,97488.0,97487.0,0.21160365]
[1739577624566,0.06973731,97488.0,97487.0,0.21860365]
[1739577625327,0.06973731,97488.0,97487.0,0.21160365]
[1739577625547,0.06973731,97488.0,97487.0,0.21860365]
[1739577625966,0.06973731,97488.0,97487.0,0.13250365]
[1739577626407,0.06873731,97488.0,97487.0,0.13250365]
[1739577626608,0.06973731,97488.0,97487.0,0.13950365]
[1739577626809,0.06973731,97488.0,97487.0,0.12550365]
[1739577627224,0.07073731,97488.0,97487.0,0.13950365]
[1739577627424,0.06873731,97488.0,97487.0,0.10950365]
[1739577627840,0.06973731,97488.0,97487.0,0.13950365]
[1739577628053,0.06973731,97488.0,97487.0,0.13250365]
[1739577628422,0.06973731,97488.0,97485.0,0.00022365]
[1739577628636,0.06973731,97488.0,97487.0,0.007]
[1739577629211,0.06973731,97488.0,97485.0,0.00022365]
[1739577629435,0.07073731,97488.0,97487.0,0.014]
[1739577629804,0.06973731,97488.0,97487.0,0.007]
[1739577630019,0.07073731,97488.0,97487.0,0.007]
[1739577630249,0.59416697,97488.0,97485.0,0.00022365]
[1739577630502,0.07589437,97480.0,97469.0,0.00022365]
[1739577630717,0.232893,97470.0,97469.0,0.00022365]
[1739577631139,0.24336062,97470.0,97469.0,0.00022365]
[1739577633583,0.24436062,97470.0,97469.0,0.01422365]
[1739577634075,0.24436062,97470.0,97469.0,0.00722365]
[1739577634309,0.24436062,97470.0,97469.0,0.01222365]
[1739577636156,0.56856062,97470.0,97469.0,0.01222365]
[1739577645206,0.41466762,97470.0,97469.0,0.01222365]
[1739577645418,0.33566762,97470.0,97469.0,0.16611865]
[1739577647996,0.01146762,97470.0,97469.0,0.16611865]
[1739577648141,0.001,97470.0,97469.0,0.16611865]
[1739577648576,0.001,97470.0,97469.0,0.3666223]
[1739577655020,0.001,97470.0,97469.0,0.2916223]
[1739577661268,0.001,97470.0,97469.0,0.16611865]
[1739577661469,0.001,97470.0,97469.0,0.01222365]
[1739577661896,0.154893,97470.0,97469.0,0.01222365]
[1739577662103,0.01656206,97470.0,97469.0,0.01222365]
[1739577663148,0.01656206,97470.0,97469.0,0.16611865]
[1739577663573,0.001,97470.0,97469.0,0.16611865]
[1739577668129,0.001,97470.0,97469.0,0.01222365]
[1739577668967,0.17045507,97470.0,97469.0,0.01222365]
[1739577669174,0.17041766,97470.0,97469.0,0.01222365]
[1739577669383,0.25311766,97470.0,97469.0,0.01222365]
[1739577669633,0.17041766,97470.0,97469.0,0.01222365]
[1739577670047,0.16941766,97470.0,97469.0,0.00022365]
[1739577670249,0.17041766,97470.0,97469.0,0.00622365]
[1739577670457,0.17041766,97470.0,97469.0,0.00822365]
[1739577670670,0.16941766,97470.0,97469.0,0.00022365]
[1739577670967,0.16941766,97470.0,97469.0,0.00222365]
[1739577672333,0.16941766,97470.0,97469.0,0.00522365]
[1739577677602,0.01552466,97470.0,97469.0,0.00522365]
[1739577677803,0.153893,97470.0,97469.0,0.00522365]
[1739577678007,0.16937187,97470.0,97469.0,0.00522365]
[1739577678809,0.01547887,97470.0,97469.0,0.23081865]
[1739577679031,0.153882,97478.0,97469.0,0.07692365]
[1739577679338,0.153879,97479.0,97471.0,0.153891]
[1739577679501,0.01546887,97477.0,97469.0,0.07692365]
[1739577679688,0.01546895,97478.0,97473.0,0.153888]
[1739577679884,0.15388,97479.0,97472.0,0.023]
[1739577680086,0.01546894,97477.0,97474.0,0.023]
[1739577680295,0.05270479,97488.0,97477.0,0.153882]
[1739577680296,0.01546587,97478.0,97477.0,0.153882]
[1739577680499,0.153876,97481.0,97476.0,0.023]
[1739577680709,0.153882,97477.0,97476.0,0.023]
[1739577680910,0.205161,97484.0,97472.0,0.023]
[1739577681133,0.153888,97473.0,97472.0,0.023]
[1739577681544,0.16937506,97473.0,97472.0,0.023]
[1739577681950,0.16937506,97473.0,97472.0,0.025]
[1739577682171,0.16937506,97473.0,97472.0,0.026]
[1739577682410,0.16937506,97473.0,97469.0,0.00022365]
[1739577682559,0.01548706,97473.0,97469.0,0.00022365]
[1739577682945,0.0815,97480.0,97469.0,0.00022365]
[1739577683152,0.153891,97471.0,97469.0,0.00022365]
[1739577683568,0.01548202,97470.0,97469.0,0.00022365]
[1739577683980,0.0826,97487.0,97469.0,0.00522365]
[1739577684162,0.0826,97487.0,97469.0,0.02822365]
[1739577684163,0.01548202,97470.0,97469.0,0.02822365]
[1739577684327,0.153893,97470.0,97469.0,0.02822365]
[1739577684526,0.16937502,97470.0,97469.0,0.02822365]
[1739577684739,0.16937502,97470.0,97469.0,0.03422365]
[1739577685145,0.16937502,97470.0,97469.0,0.00522365]
[1739577685596,0.16937502,97470.0,97469.0,0.00022365]
[1739577685753,0.17037502,97470.0,97469.0,0.01122365]
[1739577686160,0.17037502,97470.0,97469.0,0.00622365]
[1739577686596,0.17037502,97470.0,97469.0,0.01122365]
[1739577687024,0.27287867,97470.0,97469.0,0.01122365]
[1739577687782,0.27187867,97470.0,97469.0,0.00522365]
[1739577688250,0.27287867,97470.0,97469.0,0.01122365]
[1739577688638,0.27187867,97470.0,97469.0,0.00022365]
[1739577688865,0.29283621,97470.0,97469.0,0.00522365]
[1739577689070,0.17037502,97470.0,97469.0,0.00522365]
[1739577689285,0.17037502,97470.0,97469.0,0.00022365]
[1739577689484,0.17137502,97470.0,97469.0,0.00022365]
[1739577690511,0.32137502,97470.0,97469.0,0.00022365]
[1739577691527,0.40370323,97470.0,97469.0,0.00022365]
[1739577691664,0.32137502,97470.0,97469.0,0.00022365]
[1739577695597,0.42387867,97470.0,97469.0,0.00022365]
[1739577699911,0.53187867,97470.0,97469.0,0.00022365]
[1739577700123,0.42387867,97470.0,97469.0,0.00022365]
[1739577708912,0.43406727,97470.0,97469.0,0.00022365]
[1739577709119,0.49544848,97470.0,97469.0,0.00022365]
[1739577709330,0.63104848,97470.0,97469.0,6.5e-07]
[1739577709528,0.66303385,97470.0,97469.0,6.5e-07]
[1739577709927,0.77103385,97470.0,97469.0,6.5e-07]
[1739577710136,0.66303385,97470.0,97469.0,6.5e-07]
[1739577710337,0.66203385,97470.0,97469.0,6.5e-07]
[1739577710698,0.66503385,97470.0,97469.0,6.5e-07]
[1739577710927,0.60265264,97470.0,97469.0,6.5e-07]
[1739577711365,0.60465264,97470.0,97469.0,6.5e-07]
[1739577711988,0.60865264,97470.0,97469.0,6.5e-07]
[1739577712678,0.60565264,97470.0,97469.0,6.5e-07]
[1739577712907,0.60965264,97470.0,97469.0,6.5e-07]
[1739577713156,0.71215629,97470.0,97469.0,6.5e-07]
[1739577713599,0.60965264,97470.0,97469.0,6.5e-07]
[1739577714277,0.70186428,97470.0,97469.0,6.5e-07]
[1739577717225,0.60965264,97470.0,97469.0,6.5e-07]
[1739577718578,0.60365264,97470.0,97469.0,6.5e-07]
[1739577718799,0.59965264,97470.0,97469.0,6.5e-07]
[1739577719089,0.60565264,97470.0,97469.0,0.00100065]
[1739577719297,0.60939615,97470.0,97469.0,0.00100065]
[1739577719822,0.56639615,97470.0,97469.0,0.00100065]
[1739577720025,0.57339615,97470.0,97469.0,0.00100065]
[1739577720998,0.57339615,97470.0,97469.0,6.5e-07]
[1739577721210,0.61239615,97470.0,97469.0,6.5e-07]
[1739577724409,0.61239615,97470.0,97460.0,9.5e-07]
[1739577724410,0.431907,97461.0,97460.0,9.5e-07]
[1739577724635,0.407131,97446.0,97445.0,6.5e-07]
[1739577724845,0.55734963,97446.0,97445.0,6.5e-07]
[1739577725264,0.76785328,97446.0,97445.0,6.5e-07]
[1739577725482,0.55734963,97446.0,97445.0,6.5e-07]
[1739577725694,0.49417384,97446.0,97445.0,6.5e-07]
[1739577725911,0.45218847,97446.0,97445.0,6.74e-05]
[1739577726335,0.44418847,97446.0,97445.0,6.74e-05]
[1739577727466,0.45318847,97446.0,97445.0,6.74e-05]
[1739577727891,0.45218847,97446.0,97445.0,6.74e-05]
[1739577728344,0.45418847,97446.0,97445.0,6.74e-05]
[1739577728875,0.45718847,97446.0,97445.0,6.74e-05]
[1739577732847,0.48772717,97446.0,97445.0,6.74e-05]
[1739577733264,0.46718847,97446.0,97445.0,6.74e-05]
[1739577735257,0.57518847,97446.0,97445.0,6.74e-05]
[1739577735461,0.65688847,97446.0,97445.0,6.74e-05]
[1739577738349,0.68883696,97446.0,97445.0,6.74e-05]
[1739577743074,1.01303696,97446.0,97445.0,6.74e-05]
[1739577743482,1.11554061,97446.0,97445.0,6.74e-05]
[1739577743936,1.11554061,97446.0,97445.0,4e-07]
[1739577744157,1.01303696,97446.0,97445.0,4e-07]
[1739577749142,0.92133696,97446.0,97445.0,4e-07]
[1739577749358,0.93133696,97446.0,97445.0,4e-07]
[1739577754928,0.82333696,97446.0,97445.0,4e-07]
[1739577755758,0.82333696,97446.0,97445.0,0.00022405]
[1739577757719,0.92584061,97446.0,97445.0,0.00022405]
[1739577757945,0.92584061,97446.0,97445.0,5e-08]
[1739577757946,1.11164061,97446.0,97445.0,5e-08]
[1739577763091,0.323956,97430.0,97429.0,0.0474]
[1739577763315,0.79815887,97430.0,97429.0,0.04750681]
[1739577764871,0.80861596,97430.0,97429.0,0.04850681]
[1739577765075,0.82890473,97430.0,97429.0,0.04850681]
[1739577765559,0.82890473,97430.0,97429.0,0.04750681]
[1739577765838,0.82890473,97430.0,97429.0,0.04850681]
[1739577766505,0.82890473,97430.0,97429.0,0.04950681]
[1739577767258,0.82890473,97430.0,97429.0,0.04973046]
[1739577778856,0.82890473,97430.0,97429.0,0.00233046]
[1739577779269,0.81890473,97430.0,97429.0,0.00233046]
[1739577779481,0.82633877,97430.0,97429.0,0.00233046]
[1739577779691,0.91852953,97430.0,97429.0,0.00233046]
[1739577779895,0.91852953,97430.0,97429.0,0.00033046]
[1739577780098,0.91852953,97430.0,97429.0,0.00133046]
[1739577780357,0.91852953,97430.0,97429.0,0.00033046]
[1739577780782,0.91952953,97430.0,97429.0,0.00033046]
[1739577781010,0.91209549,97430.0,97429.0,0.04933046]
[1739577781856,0.90209549,97430.0,97429.0,0.04933046]
[1739577782271,0.90309549,97430.0,97429.0,0.04933046]
[1739577782446,0.871147,97430.0,97429.0,0.04933046]
[1739577782910,0.90319938,97430.0,97429.0,0.04933046]
[1739577783937,0.81100862,97430.0,97429.0,0.04933046]
[1739577788073,0.81100862,97430.0,97429.0,0.12583046]
[1739577788512,0.67645259,97430.0,97429.0,0.12583046]
[1739577791025,0.77895624,97430.0,97429.0,0.04933046]
[1739577791230,0.82101121,97430.0,97429.0,0.04933046]
[1739577791433,0.82101121,97430.0,97429.0,0.00033046]
[1739577793091,0.82111781,97430.0,97429.0,0.00033046]
[1739577794901,0.82855185,97430.0,97429.0,0.00033046]
[1739577795746,0.82855185,97430.0,97429.0,4.6e-07]
[1739577796629,0.82755185,97430.0,97429.0,4.6e-07]
[1739577796830,0.82855185,97430.0,97429.0,4.6e-07]
[1739577797006,0.91015185,97430.0,97429.0,4.6e-07]
[1739577797213,0.82855185,97430.0,97429.0,4.6e-07]
[1739577797416,0.83155185,97430.0,97429.0,4.6e-07]
[1739577797618,0.82055185,97430.0,97429.0,4.6e-07]
[1739577797825,0.82655185,97430.0,97429.0,4.6e-07]
[1739577798201,0.82011781,97430.0,97429.0,4.6e-07]
[1739577798409,0.82755185,97430.0,97429.0,4.6e-07]
[1739577798616,0.82655185,97430.0,97429.0,4.6e-07]
[1739577798997,0.83455185,97430.0,97429.0,4.6e-07]
[1739577799395,0.82711781,97430.0,97429.0,4.6e-07]
[1739577799669,0.83455185,97430.0,97429.0,4.6e-07]
[1739577801666,0.82711781,97430.0,97429.0,4.6e-07]
[1739577801823,0.83455185,97430.0,97429.0,4.6e-07]
[1739577804780,0.82711781,97430.0,97429.0,4.6e-07]
[1739577804980,0.81711781,97430.0,97429.0,4.6e-07]
[1739577806416,0.71461416,97430.0,97429.0,4.6e-07]
[1739577806620,0.68255919,97430.0,97429.0,4.6e-07]
[1739577807073,0.53255919,97430.0,97429.0,4.6e-07]
[1739577807288,0.68255919,97430.0,97429.0,0.04870046]
[1739577807490,0.6641021,97430.0,97429.0,0.04870046]
[1739577807695,0.5141021,97430.0,97429.0,0.04870046]
[1739577807900,0.49581333,97430.0,97429.0,0.13100046]
[1739577808315,0.64381333,97430.0,97429.0,0.13100046]
[1739577808725,0.64681333,97430.0,97429.0,0.13100046]
[1739577809137,0.64581333,97430.0,97429.0,0.13100046]
[1739577809385,0.49185733,97430.0,97429.0,0.13100046]
[1739577809625,0.64681333,97430.0,97429.0,0.13100046]
[1739577810253,0.64581333,97430.0,97429.0,0.13100046]
[1739577810583,0.64481333,97430.0,97429.0,0.13100046]
[1739577810919,0.64581333,97430.0,97429.0,0.13100046]
[1739577813138,0.49185733,97430.0,97429.0,0.13100046]
[1739577813560,0.34185733,97430.0,97429.0,0.13100046]
[1739577813768,0.49581333,97430.0,97429.0,0.13100046]
[1739577814198,0.49481333,97430.0,97429.0,0.13100046]
[1739577815443,0.49381333,97430.0,97429.0,0.13100046]
[1739577819406,0.64381333,97430.0,97429.0,0.13100046]
[1739577822840,0.48985733,97430.0,97429.0,0.13100046]
[1739577824056,0.33985733,97430.0,97429.0,0.13356642]
[1739577828607,0.49381333,97430.0,97429.0,0.13356642]
[1739577829324,0.16961333,97430.0,97429.0,0.13100046]
[1739577836935,0.16961333,97430.0,97429.0,0.04870046]
[1739577839746,0.01565733,97430.0,97429.0,0.04870046]
[1739577840366,0.01565733,97430.0,97429.0,0.12950046]
[1739577841005,0.01565733,97430.0,97429.0,0.13206642]
[1739577841497,0.0001066,97430.0,97429.0,0.28602442]
[1739577841715,0.01573209,97430.0,97429.0,0.28602442]
[1739577841917,0.0001066,97430.0,97429.0,0.28602442]
[1739577842332,0.0001066,97430.0,97429.0,0.38852807]
[1739577842506,0.0001066,97430.0,97429.0,0.41352807]
[1739577843129,0.0001066,97430.0,97429.0,0.41452807]
[1739577843563,0.0001066,97430.0,97429.0,0.41152807]
[1739577843755,0.0021066,97430.0,97429.0,0.41452807]
[1739577847316,0.0011066,97430.0,97429.0,0.41252807]
[1739577847527,0.0001066,97430.0,97429.0,0.41152807]
[1739577847756,0.0011066,97430.0,97429.0,0.41252807]
[1739577848334,0.0001066,97436.0,97430.0,0.023]
[1739577848489,0.0001066,97436.0,97435.0,0.30381396]
[1739577848709,0.0001066,97436.0,97435.0,0.40631761]
[1739577849620,0.0011066,97436.0,97435.0,0.40631761]
[1739577849956,0.0001066,97436.0,97435.0,0.41031761]
[1739577850364,0.0001066,97436.0,97435.0,0.41631761]
[1739577851427,0.0001066,97436.0,97435.0,0.41931761]
[1739577852406,0.0001066,97436.0,97435.0,0.41331761]
[1739577852607,0.0001066,97436.0,97435.0,0.42031761]
[1739577897451,0.0001066,97436.0,97435.0,0.41775165]
[1739577897601,0.0001066,97436.0,97435.0,0.42031761]
[1739577904212,0.0001066,97436.0,97435.0,0.34075165]
[1739577905364,0.0001066,97436.0,97435.0,0.34331761]
[1739577909451,0.0001066,97436.0,97435.0,0.34075165]
[1739577910249,0.0001066,97436.0,97435.0,0.11650365]
[1739577910515,0.0001066,97436.0,97435.0,0.014]
[1739577911189,0.0806066,97436.0,97435.0,0.014]
[1739577911496,0.09647864,97436.0,97435.0,0.014]
[1739577911663,0.25042564,97436.0,97435.0,0.014]
[1739577912817,0.40042564,97436.0,97435.0,0.007]
[1739577913024,0.54302929,97436.0,97435.0,0.014]
[1739577913243,0.87727494,97436.0,97435.0,0.014]
[1739577913446,0.15,97435.0,97430.0,0.0001065]
[1739577913646,0.234455,97431.0,97430.0,0.0001065]
[1739577913851,0.35337286,97431.0,97430.0,0.0001065]
[1739577914052,0.39347286,97431.0,97430.0,0.0001065]
[1739577915918,0.39447286,97431.0,97430.0,0.0001065]
[1739577917241,0.54447286,97431.0,97430.0,0.0001065]
[1739577917544,0.86867286,97431.0,97430.0,0.0001065]
[1739577920584,0.86889652,97431.0,97430.0,0.0001065]
[1739577931346,0.64579287,97431.0,97430.0,0.0001065]
[1739577936279,0.74829652,97431.0,97430.0,0.0001065]
[1739577936415,0.82539652,97431.0,97430.0,0.0001065]
[1739577945571,0.85741026,97431.0,97430.0,0.0001065]
[1739577952840,0.86741026,97431.0,97430.0,0.0001065]
[1739577953078,0.85741026,97431.0,97430.0,0.0001065]
[1739577953479,0.78031026,97431.0,97430.0,0.0001065]
[1739577961406,0.67780661,97431.0,97430.0,0.0001065]
[1739577965559,0.64579287,97431.0,97430.0,0.0001065]
[1739577965761,0.67783418,97431.0,97430.0,0.0001065]
[1739577967403,0.78033783,97431.0,97430.0,0.0001065]
[1739577967609,0.88284148,97431.0,97430.0,0.0001065]
[1739577967805,0.78777187,97431.0,97430.0,0.0001065]
[1739577968996,0.79777187,97431.0,97430.0,0.0001065]
[1739577969182,0.79677187,97431.0,97430.0,0.0001065]
[1739577969584,0.79977187,97431.0,97430.0,0.0001065]
[1739577988160,0.79233783,97431.0,97430.0,0.0001065]
[1739577988364,0.79977187,97431.0,97430.0,0.0001065]
[1739577990793,0.90227552,97431.0,97430.0,0.0001065]
[1739577991018,0.79977187,97431.0,97430.0,0.0001065]
[1739577993665,0.79233783,97431.0,97430.0,0.0001065]
[1739577993887,0.79977187,97431.0,97430.0,0.0001065]
[1739578000482,0.79977187,97431.0,97430.0,5e-07]
[1739578010405,0.79233783,97431.0,97430.0,5e-07]
[1739578014993,0.84544114,97431.0,97430.0,5e-07]
[1739578017776,0.79233783,97431.0,97430.0,5e-07]
[1739578019600,0.63233783,97431.0,97430.0,0.0496005]
[1739578020007,0.34383787,97431.0,97430.0,0.1311005]
[1739578020468,0.32742366,97431.0,97430.0,0.1311005]
[1739578020630,0.3077972,97431.0,97430.0,0.28762246]
[1739578020851,0.01518299,97431.0,97430.0,0.28762246]
[1739578021047,0.0001066,97436.0,97435.0,0.15651396]
[1739578021224,0.0001066,97436.0,97435.0,0.28761396]
[1739578021847,0.0001066,97436.0,97435.0,0.13366596]
[1739578022177,0.01180019,97436.0,97435.0,0.13366596]
[1739578022306,0.0001066,97436.0,97435.0,0.13366596]
[1739578022520,0.01182709,97436.0,97435.0,0.1311]
[1739578022779,0.01182827,97436.0,97435.0,0.1341]
[1739578022980,0.01182827,97436.0,97435.0,0.13666596]
[1739578023183,0.01182827,97436.0,97435.0,0.14066596]
[1739578023395,0.0001066,97436.0,97435.0,0.14066596]
[1739578024065,0.01182828,97436.0,97435.0,0.14066596]
[1739578024274,0.0001066,97436.0,97435.0,0.14066596]
[1739578024491,0.1540536,97436.0,97435.0,0.14066596]
[1739578024917,0.01182828,97436.0,97435.0,0.14066596]
[1739578025118,0.01182828,97436.0,97435.0,0.13366596]
[1739578025549,0.01182828,97436.0,97435.0,0.14066596]
[1739578025660,0.01182828,97436.0,97435.0,0.1351]
[1739578025865,0.01182828,97436.0,97435.0,0.13366596]
[1739578026072,0.01182828,97436.0,97435.0,0.13666596]
[1739578026271,0.01182828,97436.0,97435.0,0.14066596]
[1739578027143,0.01182828,97436.0,97435.0,0.1381]
[1739578027552,0.16577528,97436.0,97435.0,0.1381]
[1739578027778,0.16577528,97436.0,97435.0,0.14066596]
[1739578028067,0.01182828,97436.0,97435.0,0.14066596]
[1739578028273,0.01182828,97436.0,97435.0,0.1381]
[1739578028490,0.01182828,97436.0,97435.0,0.14066596]
[1739578028686,0.16577528,97436.0,97435.0,0.14066596]
[1739578030732,0.01182828,97436.0,97435.0,0.14066596]
[1739578031121,0.16577528,97436.0,97435.0,0.14066596]
[1739578032724,0.16577528,97436.0,97435.0,0.1381]
[1739578033585,0.16577528,97436.0,97435.0,0.1341]
[1739578033905,0.16577528,97436.0,97435.0,0.1311]
[1739578034939,0.16577528,97436.0,97435.0,0.1341]
[1739578035164,0.16577528,97436.0,97435.0,0.1371]
[1739578035367,0.16577528,97436.0,97435.0,0.006]
[1739578036665,0.31577528,97436.0,97435.0,0.003]
[1739578036870,0.31577528,97436.0,97431.0,0.0001065]
[1739578036871,0.15,97435.0,97431.0,0.0001065]
[1739578037098,0.153953,97432.0,97431.0,0.0001065]
[1739578037479,0.16573626,97432.0,97431.0,0.0001065]
[1739578039504,0.16573626,97432.0,97431.0,0.0031065]
[1739578039712,0.16573626,97432.0,97431.0,0.0051065]
[1739578043720,0.41823991,97432.0,97431.0,0.0051065]
[1739578043920,0.70885412,97432.0,97431.0,0.0051065]
[1739578044330,0.70907778,97432.0,97431.0,0.0051065]
[1739578044783,0.70907778,97432.0,97431.0,0.0021065]
[1739578045200,0.72994371,97432.0,97431.0,0.0051065]
[1739578045325,0.72994371,97432.0,97431.0,0.0031065]
[1739578045569,0.73094371,97432.0,97431.0,0.0001065]
[1739578046609,0.73294371,97432.0,97431.0,0.0001065]
[1739578051485,0.80984371,97432.0,97431.0,5e-07]
[1739578051689,0.84181339,97432.0,97431.0,5e-07]
[1739578052120,0.84924743,97432.0,97431.0,5e-07]
[1739578052460,0.84624743,97432.0,97431.0,5e-07]
[1739578053494,0.84924743,97432.0,97431.0,5e-07]
[1739578054502,0.85024743,97432.0,97431.0,5e-07]
[1739578054699,0.84724743,97432.0,97431.0,5e-07]
[1739578054930,0.85124743,97432.0,97431.0,5e-07]
[1739578057598,0.84381339,97432.0,97431.0,5e-07]
[1739578060502,0.76691339,97432.0,97431.0,5e-07]
[1739578076845,0.17095992,97432.0,97431.0,5e-07]
[1739578077052,0.01700692,97432.0,97431.0,0.1273005]
[1739578077265,0.00522366,97432.0,97431.0,0.12986646]
[1739578077476,0.00522366,97432.0,97431.0,0.28382146]
[1739578077688,0.00422366,97432.0,97431.0,0.38632511]
[1739578077901,0.0001066,97436.0,97435.0,0.28381396]
[1739578078120,0.0001066,97436.0,97435.0,0.38631761]
[1739578078974,0.0001065,97446.0,97445.0,0.28379796]
[1739578079175,0.0001065,97446.0,97445.0,0.40930161]
[1739578081102,0.0001065,97446.0,97445.0,0.41630161]
[1739578081326,0.0001065,97446.0,97445.0,0.42230161]
[1739578084604,0.0001065,97446.0,97445.0,0.29679796]
[1739578085705,0.0001065,97446.0,97445.0,0.1403]
[1739578085842,0.0001065,97446.0,97445.0,0.29679796]
[1739578086877,0.0001065,97446.0,97445.0,0.1403]
[1739578087175,0.0001065,97446.0,97445.0,0.14286596]
[1739578087420,0.0001065,97446.0,97445.0,0.29679796]
[1739578087603,0.1540375,97446.0,97445.0,0.14286596]
[1739578087802,0.16620216,97446.0,97445.0,0.14286596]
[1739578088381,0.10495316,97446.0,97445.0,0.29679796]
[1739578089071,0.0927885,97446.0,97445.0,0.29679796]
[1739578097700,0.1049441,97446.0,97445.0,0.29679796]
[1739578098111,0.1049441,97446.0,97445.0,0.14286596]
[1739578098316,0.1049441,97446.0,97445.0,0.0627]
[1739578098539,0.1049441,97446.0,97445.0,0.06526596]
[1739578098956,0.1049441,97446.0,97445.0,0.0627]
[1739578099360,0.1049441,97446.0,97445.0,0.06526596]
[1739578099939,0.1049441,97446.0,97445.0,0.0627]
[1739578100780,0.1049441,97446.0,97445.0,0.06526596]
[1739578101358,0.1049441,97446.0,97445.0,0.0627]
[1739578102081,0.1049441,97446.0,97445.0,0.06526596]
[1739578102344,0.0927885,97446.0,97445.0,0.06526596]
[1739578104817,0.2588751,97446.0,97445.0,0.0627]
[1739578105847,0.1049441,97446.0,97445.0,0.0627]
[1739578106273,0.27804484,97446.0,97445.0,0.0627]
[1739578107207,0.27804484,97446.0,97445.0,0.013]
[1739578111847,0.12411384,97446.0,97445.0,0.013]
[1739578112162,0.12411384,97446.0,97445.0,0.01556596]
[1739578115281,0.27804484,97446.0,97445.0,0.01556596]
[1739578115793,0.27804484,97446.0,97445.0,0.013]
[1739578115951,0.27804484,97446.0,97445.0,0.01556596]
[1739578116603,0.27804484,97446.0,97445.0,0.013]
[1739578117279,0.12411384,97446.0,97445.0,0.013]
[1739578117692,0.27804484,97446.0,97445.0,0.01556596]
[1739578117867,0.27804484,97446.0,97445.0,0.013]
[1739578118455,0.27804484,97446.0,97445.0,0.01556596]
[1739578118889,0.27804484,97446.0,97445.0,0.013]
[1739578119409,0.12411384,97446.0,97445.0,0.013]
[1739578119582,0.12411384,97446.0,97445.0,0.01556596]
[1739578119790,0.27804484,97446.0,97445.0,0.01556596]
[1739578120770,0.27804484,97446.0,97445.0,0.013]
[1739578124445,0.27804484,97446.0,97445.0,0.006]
[1739578124649,0.15394,97440.0,97439.0,0.00022365]
[1739578124872,0.16609985,97440.0,97439.0,0.00022365]
[1739578125305,0.18526959,97440.0,97439.0,0.00278961]
[1739578125822,0.18526959,97440.0,97439.0,0.00022365]
[1739578126031,0.18526959,97440.0,97439.0,0.00278961]
[1739578126822,0.18526959,97440.0,97439.0,0.00878961]
[1739578127051,0.18526959,97440.0,97439.0,0.01578961]
[1739578127231,0.18526959,97440.0,97439.0,0.00978961]
[1739578127531,0.41686959,97440.0,97439.0,0.00622365]
[1739578127892,0.41686959,97440.0,97439.0,0.01322365]
[1739578128296,0.41586959,97440.0,97439.0,0.00022365]
[1739578128500,0.41586959,97440.0,97439.0,0.00422365]
[1739578128722,0.41586959,97440.0,97439.0,0.00922365]
[1739578135293,0.44656813,97440.0,97439.0,0.00922365]
[1739578136050,0.44656813,97440.0,97439.0,0.00422365]
[1739578136276,0.44656813,97440.0,97439.0,0.00022365]
[1739578136502,0.44656813,97440.0,97439.0,0.00322365]
[1739578136711,0.44656813,97440.0,97439.0,0.00622365]
[1739578137515,0.54907178,97440.0,97439.0,0.00622365]
[1739578138308,0.51837324,97440.0,97439.0,0.00622365]
[1739578139073,0.51837324,97440.0,97439.0,0.00322365]
[1739578139273,0.153953,97432.0,97431.0,5e-07]
[1739578139407,0.48495665,97432.0,97431.0,5e-07]
[1739578139633,0.5441701,97432.0,97431.0,5e-07]
[1739578139862,0.57613794,97432.0,97431.0,5e-07]
[1739578140711,0.60030768,97432.0,97431.0,5e-07]
[1739578141504,0.89092189,97432.0,97431.0,5e-07]
[1739578142552,0.85895405,97432.0,97431.0,5e-07]
[1739578143169,0.88961617,97432.0,97431.0,5e-07]
[1739578144582,0.85895405,97432.0,97431.0,5e-07]
[1739578146430,0.86895405,97432.0,97431.0,5e-07]
[1739578147579,0.86595405,97432.0,97431.0,5e-07]
[1739578148230,0.86395405,97432.0,97431.0,5e-07]
[1739578148439,0.86695405,97432.0,97431.0,5e-07]
[1739578148994,0.86895405,97432.0,97431.0,0.0010005]
[1739578149365,0.87989225,97432.0,97431.0,0.0010005]
[1739578149796,0.88589225,97432.0,97431.0,0.0020005]
[1739578149996,0.87495405,97432.0,97431.0,0.0020005]
[1739578152217,0.87495405,97432.0,97431.0,5e-07]
[1739578153683,0.87495405,97432.0,97431.0,0.000107]
[1739578153883,0.390855,97431.0,97430.0,5e-07]
[1739578154062,0.6188623,97431.0,97430.0,5e-07]
[1739578154472,0.63070834,97431.0,97430.0,5e-07]
[1739578154599,0.52820469,97431.0,97430.0,5e-07]
[1739578155016,0.54737443,97431.0,97430.0,5e-07]
[1739578155218,0.55437443,97431.0,97430.0,5e-07]
[1739578155636,0.56680847,97431.0,97430.0,5e-07]
[1739578155854,0.93703301,97431.0,97430.0,5e-07]
[1739578156082,1.04513301,97431.0,97430.0,5e-07]
[1739578156742,1.03813301,97431.0,97430.0,5e-07]
[1739578156955,0.57709004,97430.0,97429.0,4.6e-07]
[1739578157182,0.71150402,97430.0,97429.0,4.6e-07]
[1739578157399,0.304002,97401.0,97400.0,0.00022365]
[1739578157615,0.69711986,97401.0,97400.0,0.00022365]
[1739578157838,0.70890393,97401.0,97400.0,0.00022365]
[1739578158716,0.72807367,97401.0,97400.0,0.00122365]
[1739578160081,0.72807367,97401.0,97400.0,0.00022365]
[1739578160552,0.73007367,97401.0,97400.0,0.00022365]
[1739578162332,0.73007367,97401.0,97400.0,0.00122365]
[1739578162802,0.73007367,97401.0,97400.0,0.00022365]
[1739578163246,0.47757002,97401.0,97400.0,0.00022365]
[1739578163471,0.32356802,97401.0,97400.0,0.00022365]
[1739578163670,0.47757002,97401.0,97400.0,0.00278961]
[1739578163864,0.47957002,97401.0,97400.0,0.00278961]
[1739578163987,0.32556802,97401.0,97400.0,0.00278961]
[1739578164190,0.47957002,97401.0,97400.0,0.00278961]
[1739578165256,0.47757002,97401.0,97400.0,0.00278961]
[1739578165458,0.47557002,97401.0,97400.0,0.00278961]
[1739578165703,0.03095381,97401.0,97400.0,0.15879361]
[1739578166049,0.01916974,97401.0,97400.0,0.28659361]
[1739578166725,0.01916974,97401.0,97400.0,0.28559361]
[1739578166909,0.01916974,97401.0,97400.0,0.28859361]
[1739578167313,0.01916974,97401.0,97400.0,0.28959361]